bitfinex-derivatives/quotes_SOLF0:USTF0_20260306
["timestamp","ask_amount","ask_price","bid_price","bid_amount"]
[1772766818945,3.2842376,88.31,88.262,10.196]
[1772766819145,3.2842376,88.31,88.263,6.84369387]
[1772766820038,3.2842376,88.31,88.269,6.84369387]
[1772766820236,6.95265486,88.317,88.271,6.84369387]
[1772766820942,3.2842376,88.31,88.271,6.84369387]
[1772766821444,3.2842376,88.31,88.272,10.195]
[1772766825852,3.2842376,88.31,88.271,6.84369387]
[1772766827660,3.2842376,88.29,88.257,6.84369387]
[1772766828758,6.95265486,88.299,88.257,6.84369387]
[1772766829465,3.2842376,88.29,88.253,10.197]
[1772766829960,3.2842376,88.29,88.254,6.84369387]
[1772766830962,3.2842376,88.28,88.241,6.84369387]
[1772766831763,10.23689246,88.27,88.183,6.84369387]
[1772766832060,10.23689246,88.27,88.221,6.84369387]
[1772766832366,3.2842376,88.26,88.221,6.84369387]
[1772766832562,3.2842376,88.25,88.221,6.84369387]
[1772766832761,3.2842376,88.27,88.221,6.84369387]
[1772766832962,3.2842376,88.26,88.221,6.84369387]
[1772766835967,6.95265486,88.259,88.221,6.84369387]
[1772766837666,6.95265486,88.259,88.209,17.04569387]
[1772766837667,3.2842376,88.25,88.209,17.04569387]
[1772766837962,6.95265486,88.259,88.211,6.84369387]
[1772766838163,10.23689246,88.25,88.203,6.84369387]
[1772766838368,6.95265486,88.239,88.19,10.12793147]
[1772766838764,3.2842376,88.22,88.176,6.84369387]
[1772766839068,6.95265486,88.229,88.181,6.84369387]
[1772766839468,3.2842376,88.22,88.181,6.84369387]
[1772766839865,3.2842376,88.21,88.17,6.95948243]
[1772766840066,3.2842376,88.21,88.17,10.24372003]
[1772766840675,6.98218615,88.219,88.17,10.24372003]
[1772766840676,6.98218615,88.219,88.171,6.95948243]
[1772766840970,3.2842376,88.21,88.171,6.95948243]
[1772766841168,6.98218615,88.209,88.161,6.95948243]
[1772766841570,6.98218615,88.209,88.164,6.95948243]
[1772766841773,3.2842376,88.21,88.164,6.95948243]
[1772766842273,3.2842376,88.23,88.181,6.95948243]
[1772766842465,6.98218615,88.256,88.2,3.2842376]
[1772766842667,6.98218615,88.256,88.211,6.95948243]
[1772766843470,3.2842376,88.25,88.211,6.95948243]
[1772766843869,6.98218615,88.256,88.211,6.95948243]
[1772766844474,3.2842376,88.25,88.211,6.95948243]
[1772766845379,3.2842376,88.24,88.2,10.24372003]
[1772766845581,10.26642375,88.24,88.191,10.204]
[1772766845880,10.26642375,88.24,88.192,6.95948243]
[1772766847078,3.2842376,88.22,88.18,3.2842376]
[1772766847273,3.2842376,88.22,88.177,6.95948243]
[1772766847479,3.2842376,88.23,88.18,3.2842376]
[1772766847880,6.98218615,88.237,88.191,6.95948243]
[1772766848178,3.2842376,88.24,88.191,6.95948243]
[1772766849172,3.2842376,88.23,88.191,6.95948243]
[1772766852280,10.26642375,88.24,88.191,6.95948243]
[1772766852479,3.28890046,88.23,88.191,6.95948243]
[1772766853584,10.27108661,88.23,88.191,6.95948243]
[1772766853782,6.98218615,88.229,88.191,6.95948243]
[1772766854283,10.199,88.239,88.134,30.0]
[1772766854284,3.28890046,88.21,88.161,6.95948243]
[1772766854775,6.98218615,88.223,88.161,6.95948243]
[1772766855083,3.28890046,88.22,88.171,6.95948243]
[1772766855579,6.98218615,88.219,88.171,6.95948243]
[1772766855783,3.28890046,88.21,88.171,6.95948243]
[1772766859682,3.28890046,88.2,88.171,6.95948243]
[1772766860181,3.28890046,88.18,88.13,3.28890046]
[1772766860486,3.28890046,88.16,88.123,6.95948243]
[1772766860677,3.28890046,88.15,88.109,6.95948243]
[1772766860879,3.28890046,88.16,88.111,6.95948243]
[1772766861080,6.98218615,88.169,88.111,6.95948243]
[1772766861379,3.28890046,88.13,88.093,6.95948243]
[1772766861580,3.28890046,88.14,88.093,6.95948243]
[1772766862679,6.98218615,88.157,88.093,6.95948243]
[1772766863275,7.35816708,88.17,88.098,6.95948243]
[1772766863475,6.98218615,88.173,88.098,6.95948243]
[1772766863979,6.98218615,88.189,88.124,6.95948243]
[1772766864579,6.98218615,88.239,88.151,6.95948243]
[1772766865086,6.98218615,88.239,88.165,6.95948243]
[1772766866188,6.98218615,88.234,88.165,6.95948243]
[1772766866986,158.54,88.301,88.15,7.35816708]
[1772766866987,10.198,88.244,88.171,6.95948243]
[1772766867486,17.18018615,88.244,88.171,6.95948243]
[1772766868486,6.69086794,88.243,88.177,6.70333501]
[1772766869383,6.69086794,88.243,88.18,6.70333501]
[1772766871389,6.69086794,88.243,88.192,6.822574]
[1772766871793,6.69086794,88.243,88.17,7.35816708]
[1772766871988,6.69086794,88.243,88.171,6.822574]
[1772766872493,6.69086794,88.243,88.182,6.822574]
[1772766876797,6.78074361,88.238,88.182,6.822574]
[1772766880089,10.198,88.247,88.185,6.822574]
[1772766880593,10.198,88.245,88.185,6.822574]
[1772766880793,6.78074361,88.244,88.185,6.822574]
[1772766881195,10.198,88.242,88.185,6.822574]
[1772766882100,10.198,88.242,88.186,10.205]
[1772766882300,10.198,88.242,88.187,6.822574]
[1772766882601,3.28880925,88.23,88.19,3.28880925]
[1772766883100,3.28880925,88.23,88.19,10.11138325]
[1772766884798,10.199,88.237,88.19,10.11138325]
[1772766884997,10.199,88.237,88.191,6.822574]
[1772766887902,3.28880925,88.23,88.191,6.822574]
[1772766889403,3.28880925,88.23,88.19,3.28880925]
[1772766889404,3.28880925,88.23,88.193,6.822574]
[1772766889705,3.28880925,88.25,88.201,6.822574]
[1772766890402,10.198,88.248,88.201,6.822574]
[1772766890599,3.28880925,88.24,88.201,6.822574]
[1772766893199,10.198,88.248,88.201,6.822574]
[1772766898210,3.28880925,88.24,88.201,6.822574]
[1772766898412,10.198,88.248,88.201,6.822574]
[1772766900315,3.28880925,88.26,88.221,6.66178171]
[1772766901418,10.49209806,88.314,88.207,6.66178171]
[1772766901419,6.79446561,88.249,88.207,6.66178171]
[1772766901613,3.28880925,88.24,88.193,6.66178171]
[1772766901811,3.28880925,88.23,88.193,6.66178171]
[1772766902015,10.199,88.238,88.193,6.66178171]
[1772766903314,6.79446561,88.237,88.193,6.66178171]
[1772766903518,3.28880925,88.23,88.193,6.66178171]
[1772766904317,3.28880925,88.24,88.193,6.66178171]
[1772766904518,3.28880925,88.24,88.2,3.28880925]
[1772766904714,3.28880925,88.25,88.201,6.66178171]
[1772766904914,3.28880925,88.26,88.211,6.66178171]
[1772766905111,10.08327486,88.26,88.211,6.66178171]
[1772766905421,6.79446561,88.259,88.211,6.66178171]
[1772766905620,10.198,88.247,88.211,6.66178171]
[1772766907020,3.28880925,88.25,88.211,6.66178171]
[1772766907914,10.197,88.257,88.211,6.66178171]
[1772766908113,3.28880925,88.24,88.195,6.66178171]
[1772766908422,6.79446561,88.229,88.18,3.28880925]
[1772766908621,6.79446561,88.229,88.181,6.66178171]
[1772766912022,6.79446561,88.275,88.211,6.66178171]
[1772766912228,10.08327486,88.25,88.2,3.28880925]
[1772766912426,3.28880925,88.24,88.197,6.66178171]
[1772766912627,10.199,88.239,88.197,6.66178171]
[1772766913025,10.2,88.229,88.183,6.66178171]
[1772766913228,3.28880925,88.22,88.183,6.66178171]
[1772766913425,10.08327486,88.22,88.17,3.28880925]
[1772766913833,10.08327486,88.22,88.171,6.66178171]
[1772766914420,10.08432086,88.22,88.171,6.66178171]
[1772766915628,10.08432086,88.22,88.171,16.86778171]
[1772766915830,10.08432086,88.22,88.172,6.66178171]
[1772766916330,6.79446561,88.219,88.172,6.66178171]
[1772766917332,3.28985525,88.21,88.172,6.66178171]
[1772766917632,6.79446561,88.219,88.172,6.66178171]
[1772766919632,3.28985525,88.2,88.151,6.66178171]
[1772766920028,6.79446561,88.209,88.161,6.66178171]
[1772766920228,6.79446561,88.209,88.166,16.86878171]
[1772766920431,6.79446561,88.209,88.166,6.66178171]
[1772766921333,6.79446561,88.209,88.16,3.28985525]
[1772766921628,6.79446561,88.209,88.161,6.66178171]
[1772766922334,3.28985525,88.2,88.161,6.66178171]
[1772766922735,6.79446561,88.199,88.151,10.209]
[1772766922934,6.79446561,88.215,88.16,3.28985525]
[1772766923130,3.28985525,88.21,88.161,6.66178171]
[1772766924427,3.28985525,88.21,88.163,6.66178171]
[1772766924928,6.79446561,88.228,88.181,6.66178171]
[1772766925129,6.79446561,88.219,88.17,3.28985525]
[1772766925329,3.28985525,88.21,88.167,6.66178171]
[1772766925932,3.28985525,88.21,88.17,3.28985525]
[1772766926128,3.28985525,88.21,88.167,6.66178171]
[1772766926729,3.28985525,88.21,88.171,6.66178171]
[1772766926931,6.79446561,88.219,88.171,6.66178171]
[1772766929649,3.28985525,88.21,88.171,6.66178171]
[1772766931028,6.8250171,88.209,88.159,30.0]
[1772766931236,6.8250171,88.199,88.159,30.0]
[1772766931627,6.8250171,88.199,88.159,36.71412692]
[1772766931832,6.8250171,88.199,88.16,6.71412692]
[1772766933236,3.28985525,88.21,88.163,6.71412692]
[1772766933437,3.28985525,88.22,88.171,6.71412692]
[1772766933739,6.8250171,88.219,88.171,6.71412692]
[1772766934234,3.28985525,88.23,88.181,6.71412692]
[1772766934642,6.8250171,88.234,88.19,3.28985525]
[1772766935338,3.28985525,88.23,88.19,3.28985525]
[1772766935536,6.8250171,88.229,88.181,6.71412692]
[1772766935837,3.28985525,88.22,88.181,6.71412692]
[1772766936338,6.8250171,88.219,88.17,3.28985525]
[1772766936532,6.8250171,88.219,88.17,10.00398217]
[1772766936729,6.8250171,88.219,88.172,6.71412692]
[1772766938640,6.8250171,88.219,88.173,10.206]
[1772766940541,6.8250171,88.219,88.177,6.71412692]
[1772766940943,6.8250171,88.219,88.18,3.28985525]
[1772766941544,3.28985525,88.23,88.181,6.71412692]
[1772766941740,10.11487235,88.23,88.181,6.71412692]
[1772766942244,6.8250171,88.23,88.191,6.71412692]
[1772766942444,10.11487235,88.23,88.191,6.71412692]
[1772766943342,6.8250171,88.23,88.191,6.71412692]
[1772766946036,10.11487235,88.23,88.191,6.71412692]
[1772766947544,6.8250171,88.259,88.211,6.71412692]
[1772766948243,6.8250171,88.256,88.211,6.71412692]
[1772766948644,10.11487235,88.25,88.211,6.71412692]
[1772766949044,6.8250171,88.249,88.211,6.71412692]
[1772766950051,3.28985525,88.26,88.213,6.71412692]
[1772766950947,3.28985525,88.26,88.215,6.71412692]
[1772766951152,10.11487235,88.26,88.215,6.71412692]
[1772766952046,6.8250171,88.26,88.22,3.28985525]
[1772766955950,6.8250171,88.26,88.215,6.71412692]
[1772766955951,10.11487235,88.26,88.215,6.71412692]
[1772766960055,10.11487235,88.26,88.22,3.28985525]
[1772766960251,6.8250171,88.26,88.221,6.83019647]
[1772766960653,6.24410324,88.271,88.23,3.28985525]
[1772766960860,13.93880559,88.308,88.182,20.411]
[1772766960861,6.24410324,88.289,88.241,6.83019647]
[1772766961254,1.97205686,88.312,88.23,3.28985525]
[1772766961255,6.24410324,88.269,88.23,3.28985525]
[1772766961551,6.24410324,88.269,88.229,6.83019647]
[1772766961755,6.24410324,88.259,88.22,3.28985525]
[1772766962857,6.24410324,88.259,88.217,6.83019647]
[1772766968362,6.24410324,88.259,88.21,3.28985525]
[1772766968558,6.24410324,88.259,88.211,6.83019647]
[1772766968855,6.24410324,88.259,88.229,0.07138555]
[1772766972455,6.24410324,88.259,88.201,10.203]
[1772766972456,6.24410324,88.249,88.201,10.203]
[1772766974559,3.28798148,88.24,88.198,6.83019647]
[1772766974854,6.24410324,88.239,88.198,6.83019647]
[1772766975455,6.24410324,88.239,88.2,10.11817795]
[1772766975656,9.53208472,88.25,88.201,6.83019647]
[1772766975862,6.24410324,88.25,88.211,6.83019647]
[1772766976360,9.53208472,88.25,88.211,6.83019647]
[1772766977067,34.87096108,88.358,88.213,6.83019647]
[1772766977068,3.28798148,88.26,88.213,6.83019647]
[1772766977255,0.07148089,88.239,88.213,6.83019647]
[1772766978365,0.07148089,88.239,88.214,10.201]
[1772766978560,3.28798148,88.26,88.215,6.83019647]
[1772766978862,3.28798148,88.26,88.22,3.28798148]
[1772766979163,3.28798148,88.26,88.221,6.83019647]
[1772766981758,9.53208472,88.26,88.221,6.83019647]
[1772766984067,3.28798148,88.27,88.224,6.83019647]
[1772766984267,9.53208472,88.27,88.224,6.83019647]
[1772766984467,6.24410324,88.269,88.224,6.83019647]
[1772766984663,6.24410324,88.269,88.226,10.2]
[1772766984865,6.24410324,88.269,88.226,17.03019647]
[1772766987061,6.24410324,88.269,88.233,10.199]
[1772766987267,6.24410324,88.269,88.234,6.83019647]
[1772766993668,10.4708527,88.297,88.183,30.0]
[1772766993669,8.75394422,88.281,88.236,6.89468657]
[1772766993870,6.5093687,88.286,88.241,6.89468657]
[1772766997568,6.5093687,88.286,88.243,6.89468657]
[1772766997772,6.5093687,88.297,88.25,3.28798148]
[1772766997972,3.28798148,88.29,88.251,6.89468657]
[1772766999173,3.28798148,88.29,88.252,17.09168657]
[1772766999470,3.28798148,88.29,88.253,6.89468657]
[1772766999776,6.5093687,88.297,88.256,6.89468657]
[1772767004475,6.5093687,88.297,88.257,6.89468657]
[1772767004679,3.28798148,88.31,88.261,6.89468657]
[1772767004979,6.5093687,88.319,88.281,6.89468657]
[1772767005174,6.5093687,88.319,88.205,27.98950206]
[1772767005175,6.5093687,88.299,88.261,6.89468657]
[1772767005973,3.28798148,88.31,88.264,6.89468657]
[1772767006575,6.5093687,88.312,88.271,6.89468657]
[1772767006775,3.28798148,88.32,88.271,6.89468657]
[1772767006975,3.28798148,88.32,88.281,6.89468657]
[1772767007274,6.5093687,88.325,88.28,3.28798148]
[1772767007275,6.5093687,88.325,88.282,6.89468657]
[1772767007681,3.28798148,88.32,88.284,6.89468657]
[1772767008683,3.28798148,88.33,88.284,6.89468657]
[1772767009475,6.5093687,88.338,88.291,6.89468657]
[1772767009676,6.5093687,88.35,88.31,10.18266805]
[1772767009878,3.28798148,88.36,88.311,6.89468657]
[1772767010176,10.185,88.357,88.311,6.89468657]
[1772767010377,6.5093687,88.349,88.301,6.89468657]
[1772767010578,3.28798148,88.35,88.301,6.89468657]
[1772767011178,3.28798148,88.35,88.3,3.28798148]
[1772767011179,3.28798148,88.35,88.311,6.89468657]
[1772767012073,6.5093687,88.359,88.311,6.89468657]
[1772767012775,6.5093687,88.359,88.249,20.395]
[1772767012776,3.28798148,88.34,88.298,6.89468657]
[1772767012977,20.361,88.397,88.286,6.89468657]
[1772767012978,6.5093687,88.329,88.286,6.89468657]
[1772767018482,3.28798148,88.32,88.286,6.89468657]
[1772767018887,6.5093687,88.319,88.277,10.194]
[1772767019076,6.5093687,88.319,88.278,6.89468657]
[1772767020287,9.87667641,88.33,88.281,6.51582735]
[1772767020494,6.58869493,88.329,88.281,6.51582735]
[1772767020780,6.58869493,88.329,88.225,30.0]
[1772767020781,3.28798148,88.34,88.291,6.51582735]
[1772767021178,13.93880559,88.395,88.245,20.396]
[1772767021179,6.58869493,88.353,88.311,6.51582735]
[1772767021380,3.28798148,88.35,88.311,6.51582735]
[1772767022589,9.87667641,88.33,88.29,3.28798148]
[1772767022884,6.58869493,88.329,88.281,6.51582735]
[1772767023386,6.58869493,88.319,88.281,6.51582735]
[1772767027893,3.28798148,88.32,88.281,6.51582735]
[1772767028504,9.87667641,88.32,88.281,6.51582735]
[1772767028797,6.58869493,88.32,88.281,6.51582735]
[1772767029001,9.87667641,88.32,88.281,6.51582735]
[1772767029601,6.58869493,88.319,88.281,6.51582735]
[1772767034806,6.58869493,88.309,88.268,6.51582735]
[1772767036004,6.58869493,88.309,88.272,6.51582735]
[1772767036399,9.87092481,88.32,88.274,6.51582735]
[1772767036604,6.58869493,88.32,88.274,6.51582735]
[1772767037504,6.58869493,88.32,88.277,6.51582735]
[1772767037896,9.87092481,88.32,88.277,6.51582735]
[1772767039505,9.87092481,88.32,88.283,6.51582735]
[1772767040608,3.28222988,88.31,88.271,6.51582735]
[1772767041408,3.28222988,88.31,88.273,6.51582735]
[1772767042202,6.58869493,88.319,88.273,6.51582735]
[1772767042407,6.58869493,88.319,88.278,6.51582735]
[1772767046512,6.58869493,88.319,88.282,6.51582735]
[1772767047113,6.58869493,88.319,88.284,6.51582735]
[1772767049413,6.58869493,88.319,88.276,6.63081997]
[1772767049616,6.58869493,88.319,88.28,6.63081997]
[1772767058623,6.58869493,88.319,88.281,6.20845874]
[1772767059123,6.18491676,88.309,88.269,6.20845874]
[1772767059826,6.18491676,88.309,88.273,6.20845874]
[1772767067528,6.18491676,88.322,88.28,3.28222988]
[1772767067729,6.18491676,88.322,88.281,6.20845874]
[1772767068430,8.82740498,88.321,88.281,6.20845874]
[1772767068731,6.18491676,88.322,88.281,6.20845874]
[1772767071526,6.18491676,88.319,88.281,6.20845874]
[1772767072830,10.4708527,88.343,88.26,6.20845874]
[1772767072831,6.18491676,88.308,88.26,6.20845874]
[1772767073234,3.28222988,88.3,88.26,9.49068862]
[1772767073532,3.28222988,88.3,88.261,6.20845874]
[1772767073725,6.18491676,88.308,88.261,6.20845874]
[1772767074737,3.28222988,88.3,88.261,6.20845874]
[1772767075234,6.18491676,88.308,88.261,6.20845874]
[1772767076435,6.18491676,88.308,88.264,6.20845874]
[1772767077431,6.18491676,88.308,88.26,3.28222988]
[1772767077432,3.28222988,88.31,88.266,6.20845874]
[1772767077638,6.18491676,88.336,88.291,6.20845874]
[1772767077839,6.18491676,88.334,88.291,6.20845874]
[1772767078038,6.18491676,88.329,88.291,6.20845874]
[1772767079137,6.18491676,88.327,88.291,6.20845874]
[1772767079338,6.18491676,88.325,88.291,6.20845874]
[1772767079538,8.81190703,88.324,88.291,6.20845874]
[1772767079741,6.18491676,88.325,88.291,6.20845874]
[1772767079939,3.28222988,88.31,88.27,3.28222988]
[1772767080239,6.17327287,88.309,88.266,6.62662397]
[1772767080835,6.17327287,88.319,88.271,6.62662397]
[1772767081036,8.81263848,88.318,88.271,6.62662397]
[1772767081236,8.81263848,88.317,88.271,6.62662397]
[1772767081436,8.81263848,88.316,88.271,6.62662397]
[1772767081733,6.17327287,88.319,88.273,6.62662397]
[1772767082236,3.28222988,88.33,88.281,6.62662397]
[1772767082541,3.28222988,88.33,88.284,6.62662397]
[1772767082743,3.28222988,88.33,88.29,3.28222988]
[1772767082941,8.81491751,88.329,88.291,6.62662397]
[1772767083143,3.28222988,88.33,88.291,6.62662397]
[1772767084043,3.28222988,88.34,88.294,6.62662397]
[1772767084243,8.81423169,88.339,88.294,6.62662397]
[1772767084443,8.81423169,88.338,88.294,6.62662397]
[1772767084645,8.81423169,88.337,88.294,6.62662397]
[1772767084846,8.81423169,88.337,88.29,3.28222988]
[1772767084847,6.17327287,88.345,88.301,6.62662397]
[1772767085140,3.28222988,88.34,88.301,6.62662397]
[1772767086239,6.17327287,88.329,88.284,6.62662397]
[1772767086437,3.28222988,88.32,88.284,6.62662397]
[1772767086744,3.28222988,88.32,88.243,20.397]
[1772767086745,3.28222988,88.34,88.291,6.62662397]
[1772767086944,8.80818848,88.339,88.291,6.62662397]
[1772767087137,3.28222988,88.34,88.291,6.62662397]
[1772767087138,8.80818848,88.338,88.291,6.62662397]
[1772767087341,3.28222988,88.34,88.291,6.62662397]
[1772767087542,8.8055872,88.339,88.293,6.62662397]
[1772767087736,8.8055872,88.338,88.293,6.62662397]
[1772767087936,6.17327287,88.342,88.301,6.62662397]
[1772767088343,6.17327287,88.339,88.29,3.28222988]
[1772767088547,10.185,88.355,88.254,30.0]
[1772767088548,6.17327287,88.319,88.275,6.62662397]
[1772767088743,3.28222988,88.31,88.275,6.62662397]
[1772767090044,6.17327287,88.319,88.275,6.62662397]
[1772767091441,3.28222988,88.3,88.263,10.196]
[1772767091742,9.45550275,88.29,88.25,3.28222988]
[1772767092151,9.45550275,88.29,88.246,6.62662397]
[1772767094049,9.45550275,88.29,88.248,6.62662397]
[1772767096544,9.45758285,88.29,88.248,6.62662397]
[1772767098344,6.17327287,88.289,88.248,6.62662397]
[1772767099142,6.17327287,88.289,88.251,6.62662397]
[1772767099343,6.17327287,88.299,88.251,6.62662397]
[1772767100550,6.17327287,88.299,88.252,6.62662397]
[1772767101655,3.28430998,88.29,88.255,10.197]
[1772767101960,6.17327287,88.299,88.256,6.62662397]
[1772767102754,6.17327287,88.299,88.205,27.98950206]
[1772767102755,3.28430998,88.31,88.261,6.62662397]
[1772767102950,6.17327287,88.289,88.249,6.62662397]
[1772767103147,6.17327287,88.289,88.25,3.28430998]
[1772767103752,6.17327287,88.289,88.25,9.91093395]
[1772767104055,6.17327287,88.289,88.25,6.62662397]
[1772767105954,6.17327287,88.289,88.251,6.62662397]
[1772767106158,3.28430998,88.3,88.251,6.62662397]
[1772767106359,6.17327287,88.299,88.251,16.82362397]
[1772767106659,6.17327287,88.289,88.24,3.28430998]
[1772767106859,3.28430998,88.28,88.237,6.62662397]
[1772767107158,3.28430998,88.28,88.197,30.0]
[1772767107159,3.28430998,88.28,88.241,6.62662397]
[1772767107460,6.17327287,88.289,88.241,6.62662397]
[1772767111062,6.17327287,88.289,88.256,0.07141628]
[1772767111260,6.45799458,88.285,88.256,0.07141628]
[1772767111459,30.90496847,88.33,88.256,0.07141628]
[1772767111460,9.74230456,88.28,88.256,0.07141628]
[1772767111958,9.74230456,88.28,88.241,6.62662397]
[1772767112363,6.45799458,88.279,88.241,6.62662397]
[1772767112559,9.61294513,88.329,88.198,30.0]
[1772767112560,6.45799458,88.269,88.227,6.5807691]
[1772767113162,6.45799458,88.269,88.228,10.2]
[1772767113464,6.45799458,88.269,88.229,6.5807691]
[1772767113668,3.28430998,88.27,88.238,6.5807691]
[1772767113866,3.28430998,88.28,88.238,6.5807691]
[1772767114268,6.45799458,88.279,88.238,6.5807691]
[1772767117771,6.45799458,88.279,88.24,10.198]
[1772767117973,10.192,88.297,88.24,10.198]
[1772767117974,3.28430998,88.29,88.241,6.5807691]
[1772767118166,6.45799458,88.289,88.241,6.5807691]
[1772767118371,6.45799458,88.279,88.241,6.5807691]
[1772767119167,6.45799458,88.279,88.242,16.7787691]
[1772767119470,6.45799458,88.279,88.243,6.5807691]
[1772767122573,6.45799458,88.269,88.231,6.5807691]
[1772767125793,6.45799458,88.269,88.232,10.199]
[1772767126175,6.45799458,88.269,88.232,16.7797691]
[1772767126479,6.45799458,88.269,88.233,6.5807691]
[1772767126680,3.28430998,88.27,88.236,6.5807691]
[1772767126875,3.28430998,88.28,88.236,6.5807691]
[1772767127280,6.45799458,88.279,88.236,6.5807691]
[1772767128479,6.45799458,88.279,88.238,10.199]
[1772767128978,6.45799458,88.279,88.239,6.5807691]
[1772767131086,3.28430998,88.28,88.248,6.5807691]
[1772767131283,9.74230456,88.29,88.248,6.5807691]
[1772767131585,3.28430998,88.28,88.248,6.5807691]
[1772767131781,6.45799458,88.279,88.235,6.5807691]
[1772767132585,9.74230456,88.27,88.235,6.5807691]
[1772767135089,6.45799458,88.269,88.223,6.5807691]
[1772767136382,3.28430998,88.27,88.223,6.5807691]
[1772767136383,6.45799458,88.259,88.223,6.5807691]
[1772767136687,6.45799458,88.259,88.215,6.5807691]
[1772767138087,6.45799458,88.249,88.203,6.5807691]
[1772767139089,6.45799458,88.249,88.204,6.5807691]
[1772767139991,9.72336317,88.24,88.204,6.5807691]
[1772767140188,6.43905319,88.229,88.179,30.0]
[1772767140389,6.43905319,88.219,88.161,6.53365808]
[1772767140586,6.43905319,88.219,88.16,3.28430998]
[1772767140587,3.28430998,88.21,88.174,6.53365808]
[1772767141192,6.43905319,88.209,88.161,6.53365808]
[1772767141392,6.43905319,88.209,88.166,10.207]
[1772767141691,6.43905319,88.209,88.167,6.53365808]
[1772767141992,3.28430998,88.22,88.171,6.53365808]
[1772767142193,3.28430998,88.23,88.181,6.53365808]
[1772767142492,3.28430998,88.24,88.194,6.53365808]
[1772767142790,13.93880559,88.291,88.194,6.53365808]
[1772767142791,3.28430998,88.23,88.194,6.53365808]
[1772767143387,3.28430998,88.25,88.201,6.53365808]
[1772767143988,3.28430998,88.25,88.21,3.28430998]
[1772767144193,6.43905319,88.249,88.204,6.53365808]
[1772767144491,3.28430998,88.24,88.204,6.53365808]
[1772767144991,6.43905319,88.249,88.204,6.53365808]
[1772767145590,3.28430998,88.24,88.204,6.53365808]
[1772767146394,14.04034254,88.307,88.153,20.417]
[1772767146395,3.28430998,88.26,88.211,6.53365808]
[1772767147396,3.28430998,88.26,88.214,6.53365808]
[1772767147590,3.28430998,88.26,88.22,3.28430998]
[1772767147896,3.28430998,88.27,88.231,6.53365808]
[1772767148595,6.43905319,88.275,88.233,6.53365808]
[1772767149193,6.43905319,88.275,88.234,10.199]
[1772767150994,6.43905319,88.275,88.234,16.73265808]
[1772767151297,3.28430998,88.3,88.26,3.28430998]
[1772767151596,3.28430998,88.3,88.251,6.53365808]
[1772767152496,9.72336317,88.3,88.255,10.197]
[1772767152800,9.72336317,88.3,88.255,16.73065808]
[1772767153893,9.72336317,88.3,88.256,6.53365808]
[1772767154901,6.43905319,88.299,88.256,6.53365808]
[1772767157398,6.43905319,88.299,88.25,3.28430998]
[1772767157598,6.43905319,88.279,88.233,10.199]
[1772767157794,6.43905319,88.269,88.22,3.28430998]
[1772767157995,6.43905319,88.259,88.216,6.53365808]
[1772767158301,6.43905319,88.272,88.231,6.53365808]
[1772767159504,0.07149925,88.26,88.231,16.73265808]
[1772767159803,0.07149925,88.26,88.232,6.53365808]
[1772767164002,0.07149925,88.26,88.22,3.28552188]
[1772767164202,0.07149925,88.26,88.221,6.53365808]
[1772767164603,3.28552188,88.27,88.221,6.53365808]
[1772767164905,6.43905319,88.272,88.23,3.28552188]
[1772767165098,3.28552188,88.28,88.241,6.53365808]
[1772767165800,0.07176283,88.269,88.241,6.53365808]
[1772767168411,0.07176283,88.269,88.242,16.73165808]
[1772767168910,0.07176283,88.269,88.243,6.02321424]
[1772767172504,0.07176283,88.269,88.244,10.198]
[1772767173009,8.83598342,88.299,88.25,6.33567137]
[1772767173310,6.14725298,88.301,88.197,30.0]
[1772767173311,6.14725298,88.301,88.261,6.33567137]
[1772767175612,6.14725298,88.299,88.261,6.33567137]
[1772767181520,6.14725298,88.318,88.271,6.33567137]
[1772767182521,6.14725298,88.318,88.273,6.33567137]
[1772767182820,9.13339146,88.33,88.286,6.40743182]
[1772767183127,6.14725298,88.329,88.286,6.40743182]
[1772767184120,169.683,88.406,88.286,6.40743182]
[1772767184121,6.14725298,88.341,88.291,6.33567137]
[1772767185522,6.14725298,88.341,88.301,16.52667137]
[1772767186423,6.14725298,88.341,88.302,6.33567137]
[1772767186918,6.14725298,88.329,88.271,6.33567137]
[1772767187117,6.14725298,88.329,88.281,6.33567137]
[1772767187720,2.98613848,88.34,88.289,6.33567137]
[1772767187920,6.14725298,88.344,88.291,6.33567137]
[1772767189118,6.14725298,88.344,88.3,2.98613848]
[1772767189322,6.14725298,88.344,88.301,6.33567137]
[1772767190420,6.14725298,88.344,88.314,0.07163242]
[1772767195922,2.98613848,88.35,88.314,0.07163242]
[1772767196123,6.14725298,88.356,88.314,6.40730379]
[1772767196324,2.98613848,88.35,88.314,6.40730379]
[1772767196524,6.14725298,88.356,88.314,6.40730379]
[1772767196724,2.98613848,88.35,88.314,6.33567137]
[1772767197329,6.14725298,88.356,88.315,10.19]
[1772767197732,2.98613848,88.35,88.315,10.19]
[1772767199028,6.14725298,88.356,88.315,10.19]
[1772767200026,2.98613848,88.36,88.316,6.256251]
[1772767200431,2.98613848,88.36,88.318,6.256251]
[1772767200930,6.53583109,88.368,88.318,6.256251]
[1772767201127,11.21816411,88.437,88.262,11.33]